{"text_format":"2","workbook":"xlsx","n_sheets":14,"sheets":["Total","meuble","Cuve","automatisme","substrat + PVs","Sels","mesure","pompes brassage","Températures","Eclairages","Electricité","Décante","Tuyauterie","Osmoseur"],"not_rendered":{"charts":0,"images":0,"macros":0,"external_links":0,"defined_names":0,"comments":0,"pivot_tables":0},"unopened":[],"bounds":{"document_bytes":16777216,"sheet_cells":100000,"run_cost":"one","rows_first":2000,"rows_last":500,"rows_between":2000,"halvings":0,"cell_chars":16384,"cell_head_chars":4096},"cells_cut":0,"cells_raw":0,"read":"whole","date_system":"1900"}

{"sheet":"Total","index":0,"n_rows":16,"n_cols":2,"rows_kept":16,"cut":false,"hidden":false,"merged":[]}
["Nom","Total"]
["Cuve",{"$f":"Cuve!F20","v":413.56000000000006}]
["Meuble",{"$f":"meuble!E9","v":83.39}]
["Automatisme",{"$f":"automatisme!E4","v":12.64}]
["Substrat + Pvs",{"$f":"'substrat + PVs'!E5","v":309.88}]
["sels",{"$f":"Sels!E3","v":24.9}]
["Mesure",{"$f":"mesure!E5","v":93}]
["Pompes de brassage",{"$f":"'pompes brassage'!E4","v":41.84}]
["Températures",{"$f":"Températures!E6","v":12.99}]
["Eclairages",{"$f":"Eclairages!E16","v":65.94}]
["Décante",{"$f":"Décante!E5","v":138.01}]
["Electricité",{"$f":"Electricité!E7","v":83.36}]
["Tuyauterie",{"$f":"Tuyauterie!E18","v":113.56000000000002}]
["Osmoseur",{"$f":"Osmoseur!E7","v":120.54000000000002}]
[]
["Total",{"$f":"SUM(B2:B15)","v":1627.86}]

{"sheet":"meuble","index":1,"n_rows":9,"n_cols":8,"rows_kept":9,"cut":false,"hidden":false,"merged":[]}
["Matériels","Ref","PU","Nombre","total","Remarques","Site","Date D'achat"]
["Corniere 597 mm 30*30",null,2.61,4,{"$f":"D2*C2","v":10.44},null,"metalenstock","Fait"]
["Corniere 697 mm 30*30",null,2.61,4,10.44,null,"metalenstock","Fait"]
["Corniere 1060mm 30*30",null,4.63,4,18.52,null,"metalenstock","Fait"]
["Peinture",null,24.99,1,24.99,null,"Bricolage","Fait"]
["Vis",null,3,1,3,null,"Bricolage","Fait"]
["soudure",null,16,1,16,null,"Bricolage","Fait"]
["Meche",null,10,1,10,null,"Bricolage"]
[null,null,null,"Total",{"$f":"SUM(E2:E9)","v":0}]

{"sheet":"Cuve","index":2,"n_rows":20,"n_cols":9,"rows_kept":20,"cut":false,"hidden":false,"merged":[]}
[null,"Matériels","Ref","PU","Nombre","total","Remarques","Site","Date D'achat"]
["Cuve","Avant Cuve","verre normal bord brut",49.92,1,{"$f":"D2*E2","v":49.92},null,null,"Fait"]
[null,"Cotés cuve","verre normal bord brut",{"$f":"97.31/2","v":48.655000000000001},2,97.31," Encoche 200*85mm + Trou 32mm",null,"Fait"]
[null,"fond Cuve","verre transparent bord brut",36.78,1,36.78,null,null,"Fait"]
[null,"arriere cuve","verre transparent bord brut",70.62,1,70.62,null,null,"Fait"]
[null,"Livraison",null,58,1,58,null,null,"Fait"]
["Sortie","arriere devers","verre normal bord brut",1.1499999999999999,1,1.1499999999999999,null,null,"Fait"]
[null,"cotes devers","verre normal bord brut",0.55000000000000004,2,1.1000000000000001,"Trou 45mm a faire avec le foret",null,"Fait"]
[null,"Fond devers","verre normal bord brut",0.6,1,0.6,null,null,"Fait"]
["Décante","fond tech","verre normal bord brut",7.37,1,7.37,null,null,"Fait"]
[null,"AV/AR tech","verre normal bord brut",7.9,2,15.8,null,null,"Fait"]
[null,"cotés tech","verre normal bord brut",3.77,2,7.54,null,null,"Fait"]
[null,"Lame","verre normal bord brut",1.88,4,7.52,null,null,"Fait"]
[null,"Colle",null,9.99,2,19.98,null,null,"Fait"]
[null,"pistolet ",null,7.5,1,7.5,null,null,"Fait"]
[null,"foret 45mm",null,2.5,1,2.5,null,null,"Fait"]
[null,"Peinture",null,8,1,8,null,null,"Fait"]
[null,"Mousse",null,5.99,3,17.97,null,null,"Fait"]
[null,"Bac reserve eau",null,3.9,1,3.9,null,null,"Fait"]
[{"$nulls":4},"total",{"$f":"SUM(F2:F19)","v":413.56000000000006}]

{"sheet":"automatisme","index":3,"n_rows":4,"n_cols":8,"rows_kept":4,"cut":false,"hidden":false,"merged":[]}
["Matériels","Ref","PU","Nombre","total","Remarques","Site","Date D'achat"]
["Pompe Osmlolateur","Mini Micro Submersible Pompe À Eau",5.44,1,{"$f":"D2*C2","v":5.44},null,"Aliexpress","Fait"]
["Capteur niveau eau",null,{"$f":"7.2/5","v":1.44},5,{"$f":"D3*C3","v":7.1999999999999993},null,"Aliexpress","Fait"]
[null,null,null,"Total",{"$f":"SUM(E2:E3)","v":12.64}]

{"sheet":"substrat + PVs","index":4,"n_rows":5,"n_cols":8,"rows_kept":5,"cut":false,"hidden":false,"merged":[]}
[50,"Ref","PU","Nombre","total","Remarques","Site","Date D'achat"]
["Sable","AQUA MEDIC Bali Sand 0,5-1,2mm - 10 kg",29.99,2,{"$f":"D2*C2","v":59.98},"15Kg","Aquastore","Fait"]
["PV",null,15.9,7,{"$f":"D3*C3","v":111.3},"7kg","Marinehome","Fait"]
["Reefrock",null,9.9,14,{"$f":"D4*C4","v":138.6},"14kg","Marinehome","Fait"]
[null,null,null,"Total",{"$f":"SUM(E2:E4)","v":309.88}]

{"sheet":"Sels","index":5,"n_rows":3,"n_cols":8,"rows_kept":3,"cut":false,"hidden":false,"merged":[]}
["Matériels","Ref","PU","Nombre","total","Remarques","Site","Date D'achat"]
[null,null,{"$f":"20.75*1.2","v":24.9},1,{"$f":"D2*C2","v":24.9},"35g/L => 1025 200L=> 7Kg","Marine home","Septembre"]
[null,null,null,"Total",{"$f":"SUM(E2:E2)","v":24.9}]

{"sheet":"mesure","index":6,"n_rows":5,"n_cols":8,"rows_kept":5,"cut":false,"hidden":false,"merged":[]}
["Matériels","Ref","PU","Nombre","total","Remarques","Site","Date D'achat"]
["densimetres",null,11,1,{"$f":"D2*C2","v":11},null,"Aliexpress","Fait"]
["kits mesures",null,30,1,41,null,"Botanique","Fait"]
["redox",null,15,1,41,null,null,"Fait"]
[null,null,null,"Total",{"$f":"SUM(E2:E4)","v":93}]

{"sheet":"pompes brassage","index":7,"n_rows":4,"n_cols":8,"rows_kept":4,"cut":false,"hidden":false,"merged":[]}
["Matériels","Ref","PU","Nombre","total","Remarques","Site","Date D'achat"]
["Pompe de brassage","JVP-110",8.1,2,{"$f":"D2*C2","v":16.2},"40X le volume => 7200 L","Aliexpress","Fait"]
["Pompe de brassage","JVP-101A",12.82,2,{"$f":"D3*C3","v":25.64},null,"Aliexpress","Fait"]
[null,null,null,"Total",{"$f":"SUM(E2:E3)","v":41.84}]

{"sheet":"Températures","index":8,"n_rows":6,"n_cols":8,"rows_kept":6,"cut":false,"hidden":false,"merged":[]}
["Matériels","Ref","PU","Nombre","total","Remarques","Site","Date D'achat"]
["Chauffage",null,12.99,1,{"$f":"D2*C2","v":12.99},"300W","Aquastore","Fait"]
[]
[]
[]
[null,null,null,"Total",{"$f":"SUM(E2)","v":12.99}]

{"sheet":"Eclairages","index":9,"n_rows":16,"n_cols":9,"rows_kept":16,"cut":false,"hidden":false,"merged":[]}
["Matériels","Ref","PU","Nombre","total","Remarques","Site","Date D'achat"]
["Leds",null,0.2,17,{"$f":"D2*C2","v":3.4000000000000004},null,"Aliexpress","Fait","(manque led vert)"]
["Leds UV",null,{"$f":"4.4/10","v":0.44000000000000006},4,1.7600000000000002,null,"Aliexpress","Fait"]
["Regle aluminium",null,15,1,15,null,"Magasin de bricolage","Fait"]
["Alimentation 12V",null,0,1,0,null,"Recupération","Fait"]
["Carte Commande",null,4.99,1,4.99,null,"SeedStudio","Fait"]
["Circuit par led",null,4.99,1,4.99,null,"SeedStudio","Fait"]
["Pieds",null,null,2,0,null,null,"Fait"]
["Ventilateur",null,0,6,0,null,"Recupération","Fait"]
["Lentille",null,1.79,20,35.799999999999997,null,"Aliexpress","Fait"]
["Vis M2",null,null,80,0,null,"Aliexpress","Fait"]
["Vis M3",null,null,80,0,null,"Aliexpress","Fait"]
["Vis ventilateur ??",null,null,null,0,null,"Aliexpress","Fait"]
["Vis montage ??",null,null,null,0,null,"Aliexpress","Fait"]
["Resistance",null,0.12,17,2.04,null,"Aliexpress","Fait"]
[null,null,null,"Total",{"$f":"SUM(E2:E10)","v":65.94}]

{"sheet":"Electricité","index":10,"n_rows":7,"n_cols":8,"rows_kept":7,"cut":false,"hidden":false,"merged":[]}
["Matériels","Ref","PU","Nombre","total","Remarques","Site","Date D'achat"]
["Rail DIN",581538,4.99,4,{"$f":"D2*C2","v":19.96},"nombre de module \n15 prise + 2 dijoncteur\n+ emplacement Ordinateur","Magasin de bricolage","Fait"]
["disjoncteur",948469,6.95,2,{"$f":"D3*C3","v":13.9},null,"Magasin de bricolage","Fait"]
["Prise electrique",1159821,4.95,10,{"$f":"D4*C4","v":49.5},null,"Magasin de bricolage","Fait"]
[]
[]
[null,null,null,"Total",{"$f":"SUM(E2:E6)","v":83.36}]

{"sheet":"Décante","index":11,"n_rows":5,"n_cols":8,"rows_kept":5,"cut":false,"hidden":false,"merged":[]}
["Matériels","Ref","PU","Nombre","total","Remarques","Site","Date D'achat"]
["Ecumeurs","Curve A5",122,1,{"$f":"D2*C2","v":122},"Mini 2X voulume du fabricant","Aliexpress","Fait"]
["pompes remontés",null,16.010000000000002,1,{"$f":"D3*C3","v":16.010000000000002},"3 et 4 X volumes du bac par heure\nSoit 11L/min","Aliexpress"]
[]
[{"$nulls":4},{"$f":"SUM(E2:E3)","v":138.01}]

{"sheet":"Tuyauterie","index":12,"n_rows":18,"n_cols":8,"rows_kept":18,"cut":false,"hidden":false,"merged":[]}
["Matériels","Ref","PU","Nombre","total","Remarques","Site","Date D'achat"]
["Joint uniseal® 32mm",null,3.5,2,{"$f":"D2*C2","v":7},null,"Neo3plus","Fait"]
["Coude 90 32mm",null,1.9,2,3.8,null,"aquastore","Fait"]
["Vanne 32mm",null,12.9,2,25.8,null,"aquastore","Fait"]
["Tube 32mm",null,3.9,2,7.8,null,"aquastore","Fait"]
["Embout cannelé 32mm",null,2.9,4,11.6,null,"aquastore","Fait"]
["Tuyau souple 32mm",null,2.4500000000000002,5,12.25,null,"garda-aquatic","Fait"]
["T 32mm",null,1.9,2,3.8,null,"aquastore","Fait"]
["Bouchon 32mm",null,1.9,4,7.6,null,"aquastore","Fait"]
["Joint uniseal® 20mm",null,2.75,1,2.75,null,"Neo3plus","Fait"]
["Tuyau souple 20mm",null,1.4,3,4.1999999999999993,null,"garda-aquatic","Fait"]
["tube 20mm",null,2.9,1,2.9,null,"aquastore","Fait"]
["Embout cannelé 20mm",null,1.9,1,1.9,null,"aquastore","Fait"]
["Coude 90 20mm",null,1.7,1,1.7,null,"aquastore","Fait"]
["Colle PVC",null,7.9,1,7.9,"Colle N-30 pour PVC - 250ml","aquastore","Fait"]
["Sac perlon",null,1.33,2,2.66,null,"Fabriqué","Fait"]
["Peigne",null,9.9,1,9.9,null,"aquastore","Fait"]
[null,null,null,"Total",{"$f":"SUM(E2:E17)","v":113.56000000000002}]

{"sheet":"Osmoseur","index":13,"n_rows":7,"n_cols":8,"rows_kept":7,"cut":false,"hidden":false,"merged":[]}
["Matériels","Ref","PU","Nombre","total","Remarques","Site","Date D'achat"]
["Osmoseur",null,39.9,1,{"$f":"D2*C2","v":39.9},null,"aquastore","Fait"]
["Pompe ",null,65.989999999999995,1,57.53,null,"Manomano","Fait"]
["TDS metre",null,2.0099999999999998,1,{"$f":"D4*C4","v":2.0099999999999998},null,"Aliexpress","Fait"]
["Robiné double",null,21.1,1,{"$f":"D5*C5","v":21.1},null,"Magasin de bricolage","Fait"]
["Sortie pompe",null,12.46,1,{"$f":"D6*C6","v":12.46},null,"aquastore","Fait"]
[null,null,null,"Total",{"$f":"SUM(E2:E5)","v":120.54000000000002}]